bitfinex-derivatives/quotes_SOLF0:USTF0_20240911
["timestamp","ask_amount","ask_price","bid_price","bid_amount"]
[1726061188881,18.06,132.67,132.61,3.7704]
[1726061189480,18.06,132.67,132.59,18.06]
[1726061189780,24.48656303,132.69,132.59,18.06]
[1726061189985,24.48656303,132.69,132.61,18.06]
[1726061190280,24.48656303,132.69,132.59,18.06]
[1726061191282,3.7692,132.66,132.62,3.7702]
[1726061191579,24.48656303,132.69,132.59,18.06]
[1726061191787,3.7696,132.65,132.61,3.7705]
[1726061192083,24.48656303,132.69,132.59,18.06]
[1726061192874,3.7693,132.66,132.62,3.7701]
[1726061193677,3.7697,132.65,132.61,3.7705]
[1726061194477,3.7698,132.64,132.61,3.7705]
[1726061194785,24.48656303,132.69,132.59,18.06]
[1726061195379,24.48656303,132.69,132.6,3.7708]
[1726061195781,3.7699,132.64,132.6,3.7708]
[1726061196685,3.7701,132.63,132.59,21.8311]
[1726061196883,18.06,132.67,132.57,18.06]
[1726061197076,1.3771,132.66,132.57,18.06]
[1726061197285,3.7705,132.62,132.58,3.7713]
[1726061197884,3.7706,132.61,132.57,21.8316]
[1726061198088,3.7706,132.61,132.57,3.7716]
[1726061198282,18.06,132.65,132.55,18.06]
[1726061198487,1.3924,132.64,132.56,3.772]
[1726061198786,1.3924,132.64,132.55,18.06]
[1726061198981,3.7707,132.61,132.55,18.06]
[1726061199494,3.7707,132.61,132.57,3.7717]
[1726061199784,3.7709,132.6,132.55,18.06]
[1726061200177,3.80609397,132.62,132.55,18.06]
[1726061200388,1.3486,132.63,132.55,18.06]
[1726061201193,3.771,132.6,132.56,3.772]
[1726061202489,3.7712,132.59,132.55,21.8322]
[1726061203191,3.7715,132.58,132.55,18.06]
[1726061203494,3.7715,132.58,132.54,3.7725]
[1726061204692,3.7715,132.58,132.55,3.7723]
[1726061205290,3.68540173,132.61,132.53,18.06]
[1726061205485,19.4086,132.63,132.53,18.06]
[1726061205683,3.771,132.6,132.53,18.06]
[1726061205995,3.81591852,132.61,132.53,18.06]
[1726061206193,19.4086,132.63,132.53,18.06]
[1726061206393,19.4086,132.63,132.56,3.7719]
[1726061206394,3.771,132.6,132.56,3.7719]
[1726061208486,3.7712,132.59,132.55,3.7721]
[1726061208793,19.4086,132.63,132.53,18.06]
[1726061208996,1.3701,132.6,132.53,18.06]
[1726061209186,3.76905085,132.59,132.53,18.06]
[1726061209390,3.7719,132.57,132.53,21.8328]
[1726061209591,1.4237,132.59,132.53,21.8328]
[1726061209794,1.4237,132.59,132.53,3.7728]
[1726061210186,1.4237,132.59,132.54,3.7724]
[1726061210588,3.73990462,132.58,132.51,18.06]
[1726061211595,3.7721,132.56,132.52,3.773]
[1726061212296,3.7721,132.56,132.53,11.59]
[1726061212495,1.3701,132.6,132.52,3.79046427]
[1726061212798,1.3701,132.6,132.56,11.59]
[1726061212990,3.7713,132.59,132.56,11.59]
[1726061213603,1.3701,132.6,132.54,11.59]
[1726061214000,3.7719,132.57,132.54,3.7726]
[1726061214199,1.3701,132.6,132.54,3.7726]
[1726061214493,3.7713,132.59,132.55,3.7721]
[1726061214699,3.68179876,132.62,132.54,18.11]
[1726061215003,19.4586,132.63,132.54,18.11]
[1726061215194,3.7713,132.59,132.55,3.7721]
[1726061215394,3.82403984,132.6,132.54,18.11]
[1726061215603,1.3949,132.62,132.54,21.8824]
[1726061215992,1.3949,132.62,132.54,3.7724]
[1726061216192,5.14254239,132.62,132.54,3.7724]
[1726061216401,1.3949,132.62,132.54,3.7724]
[1726061217003,3.7716,132.58,132.54,3.7724]
[1726061217197,5.1964843,132.62,132.53,21.8827]
[1726061217603,3.7718,132.57,132.53,21.8827]
[1726061218109,3.772,132.56,132.52,3.7731]
[1726061220099,3.772,132.56,132.51,18.11]
[1726061220300,3.7723,132.55,132.51,18.11]
[1726061220700,3.7723,132.55,132.51,3.7733]
[1726061220902,1.3233,132.58,132.51,3.7733]
[1726061221101,1.3233,132.58,132.49,18.11]
[1726061221102,1.429,132.57,132.49,18.11]
[1726061221301,3.7727,132.54,132.5,3.7735]
[1726061221604,1.429,132.57,132.5,3.7735]
[1726061222100,3.7724,132.55,132.51,3.7734]
[1726061222998,3.7729,132.53,132.49,18.11]
[1726061223301,19.539,132.57,132.47,18.11]
[1726061223906,3.7728,132.54,132.5,3.7737]
[1726061225013,3.7729,132.53,132.5,3.7737]
[1726061225410,3.81820239,132.53,132.39,169.83898624]
[1726061225615,3.7736,132.51,132.45,18.11]
[1726061225803,3.71404846,132.52,132.46,3.7747]
[1726061226110,18.11,132.55,132.46,3.7747]
[1726061226512,3.774,132.49,132.45,25.74172227]
[1726061226813,21.81951913,132.55,132.45,21.96672227]
[1726061227112,21.81951913,132.55,132.47,3.7744]
[1726061227302,21.81951913,132.55,132.45,3.85672227]
[1726061227502,21.81951913,132.55,132.44,18.11]
[1726061227704,21.81951913,132.55,132.48,3.7741]
[1726061227905,19.539,132.57,132.46,18.11]
[1726061228108,19.539,132.57,132.52,3.773]
[1726061228109,1.429,132.57,132.52,3.773]
[1726061228311,1.429,132.57,132.48,18.11]
[1726061228708,1.429,132.57,132.53,3.7728]
[1726061230222,1.429,132.57,132.54,3.7726]
[1726061230811,18.11,132.59,132.56,3.7719]
[1726061231119,18.11,132.59,132.46,3.74084698]
[1726061231120,2.596,132.61,132.52,18.11]
[1726061231810,3.84037735,132.6,132.52,18.11]
[1726061232014,2.596,132.61,132.52,18.11]
[1726061232205,3.972,132.61,132.52,18.11]
[1726061232513,7.68370967,132.61,132.5,18.11]
[1726061232717,18.11,132.6,132.54,3.7724]
[1726061233009,18.11,132.6,132.5,21.95864946]
[1726061233810,18.11,132.6,132.55,3.7722]
[1726061234107,18.11,132.6,132.5,21.95864946]
[1726061234315,18.11,132.6,132.53,3.7727]
[1726061236513,18.11,132.56,132.42,7.5519]
[1726061236713,2.7301,132.55,132.46,18.11]
[1726061236918,3.7334943,132.54,132.5,3.7735]
[1726061238425,2.7301,132.55,132.51,3.7733]
[1726061238727,2.7301,132.55,132.48,18.11]
[1726061239214,18.11,132.59,132.5,18.11]
[1726061239422,2.706,132.6,132.5,18.11]
[1726061239621,2.706,132.6,132.46,3.7138761]
[1726061239923,18.11,132.57,132.51,3.7732]
[1726061240115,3.7731,132.53,132.47,18.11]
[1726061240426,3.7731,132.53,132.45,18.11]
[1726061240623,3.7731,132.53,132.49,3.7739]
[1726061240924,2.7587,132.54,132.47,18.11]
[1726061241121,20.8687,132.59,132.54,3.7724]
[1726061241310,20.8687,132.59,132.51,18.11]
[1726061241311,2.7587,132.59,132.51,18.11]
[1726061241719,2.7587,132.59,132.55,3.7722]
[1726061242129,23.19770967,132.61,132.53,18.11]
[1726061242130,1.376,132.61,132.53,18.11]
[1726061242326,2.7587,132.65,132.55,18.11]
[1726061242521,3.7701,132.63,132.55,18.11]
[1726061242916,20.8687,132.65,132.55,3.78329434]
[1726061243116,6.5283,132.65,132.57,18.11]
[1726061243321,2.7587,132.65,132.57,18.11]
[1726061243528,18.11,132.7,132.6,18.11]
[1726061243731,3.7691,132.67,132.6,18.11]
[1726061244219,3.7691,132.67,132.62,3.7703]
[1726061244425,3.7692,132.66,132.62,3.7703]
[1726061244629,3.7692,132.66,132.6,18.11]
[1726061245022,18.11,132.7,132.6,18.11]
[1726061245221,21.91090497,132.7,132.6,18.11]
[1726061245528,3.7694,132.66,132.61,3.7705]
[1726061245831,18.11,132.69,132.58,18.11]
[1726061246526,21.87131221,132.69,132.58,21.93277526]
[1726061246735,21.87131221,132.69,132.58,18.11]
[1726061247231,18.11,132.67,132.58,18.11]
[1726061247436,18.11,132.67,132.56,18.11]
[1726061247821,3.7702,132.63,132.58,3.7714]
[1726061249124,3.7705,132.62,132.57,6.23577617]
[1726061249324,3.7705,132.62,132.56,24.34577617]
[1726061249524,18.11,132.67,132.56,24.34577617]
[1726061249721,18.11,132.67,132.58,3.7712]
[1726061250130,3.7702,132.63,132.58,3.7712]
[1726061250332,18.11,132.67,132.58,3.7712]
[1726061250741,3.7703,132.63,132.58,3.7712]
[1726061252040,18.11,132.67,132.58,3.7712]
[1726061252731,3.7702,132.63,132.58,3.7712]
[1726061252931,18.11,132.67,132.57,3.7716]
[1726061253234,3.7705,132.62,132.57,3.7716]
[1726061254132,3.7706,132.61,132.56,21.882]
[1726061254436,3.7706,132.61,132.56,3.772]
[1726061254636,3.7708,132.61,132.56,3.772]
[1726061255042,3.7708,132.61,132.57,3.7717]
[1726061256126,3.9565,132.64,132.56,18.11]
[1726061256534,18.11,132.67,132.57,18.11]
[1726061256738,3.7695,132.65,132.57,24.3397086]
[1726061256924,3.7695,132.65,132.57,18.11]
[1726061257838,3.7698,132.64,132.57,18.11]
[1726061258238,3.7698,132.64,132.59,3.7711]
[1726061258429,3.7701,132.63,132.59,3.7711]
[1726061258626,3.7701,132.63,132.57,18.11]
[1726061258835,18.11,132.65,132.58,3.7713]
[1726061259032,3.7705,132.62,132.55,34.308831]
[1726061259234,3.7705,132.62,132.58,3.7714]
[1726061259936,3.84870653,132.64,132.58,3.7714]
[1726061260139,3.7702,132.63,132.58,3.7714]
[1726061260337,18.11,132.63,132.56,6.23050518]
[1726061260544,2.7121,132.62,132.53,18.11]
[1726061260742,2.7121,132.62,132.56,3.7717]
[1726061261242,6.54911636,132.62,132.56,3.7717]
[1726061262032,3.7708,132.61,132.57,3.7717]
[1726061262230,231.5361,132.71,132.55,18.11]
[1726061262436,18.11,132.66,132.55,24.34050518]
[1726061262635,3.7702,132.63,132.58,3.7714]
[1726061262834,3.7702,132.63,132.56,6.23050518]
[1726061263144,3.7702,132.63,132.58,3.7713]
[1726061263741,3.7702,132.63,132.56,9.93043729]
[1726061265237,3.7702,132.63,132.59,3.7712]
[1726061266743,10.26886567,132.65,132.57,18.11]
[1726061267047,10.26886567,132.65,132.57,24.33801917]
[1726061267346,2.6844,132.65,132.59,18.11]
[1726061267946,2.6844,132.65,132.62,3.7702]
[1726061268941,2.6844,132.65,132.61,3.7705]
[1726061269141,2.6844,132.65,132.59,18.11]
[1726061269747,3.7691,132.67,132.59,18.11]
[1726061269944,2.6536,132.69,132.61,3.7705]
[1726061270145,3.74358974,132.68,132.61,3.7705]
[1726061270344,3.7696,132.65,132.59,18.11]
[1726061271148,18.11,132.68,132.59,18.11]
[1726061271349,2.6536,132.69,132.6,18.11]
[1726061271750,6.33431789,132.69,132.6,18.11]
[1726061272561,3.769,132.67,132.62,3.7703]
[1726061272849,6.33431789,132.69,132.6,18.11]
[1726061273053,2.6536,132.69,132.6,18.11]
[1726061273563,6.47382471,132.69,132.6,18.11]
[1726061274055,3.7688,132.68,132.62,3.7701]
[1726061274845,3.769,132.67,132.6,18.11]
[1726061275442,3.769,132.67,132.61,3.7705]
[1726061275673,6.47382471,132.69,132.59,18.11]
[1726061275674,3.7692,132.66,132.59,18.11]
[1726061275849,6.47382471,132.69,132.59,18.11]
[1726061275850,18.11,132.68,132.59,18.11]
[1726061276049,18.11,132.68,132.6,3.7707]
[1726061276552,18.11,132.68,132.6,3.7708]
[1726061277054,3.7697,132.65,132.57,18.11]
[1726061277252,18.11,132.68,132.59,3.7711]
[1726061277550,3.77,132.64,132.57,18.11]
[1726061277760,3.77,132.64,132.57,24.34165374]
[1726061277952,18.11,132.66,132.57,24.34165374]
[1726061278152,18.11,132.66,132.56,170.06738633]
[1726061278554,3.7702,132.63,132.57,3.7715]
[1726061279153,3.7702,132.63,132.58,3.7714]
[1726061279351,3.7703,132.62,132.56,170.06738633]
[1726061280260,18.11,132.64,132.45,7.5502]
[1726061280453,20.8372,132.61,132.5,18.11]
[1726061280754,3.7713,132.59,132.53,3.7728]
[1726061280951,24.67317285,132.61,132.52,3.80196446]
[1726061281157,24.67317285,132.61,132.51,6.23461077]
[1726061281360,3.7715,132.58,132.53,3.7726]
[1726061281558,3.7715,132.58,132.52,3.72953172]
[1726061282054,24.67317285,132.61,132.54,3.7726]
[1726061282055,3.7713,132.59,132.54,3.7726]
[1726061282452,24.67317285,132.61,132.51,6.2326692]
[1726061282755,18.11,132.59,132.5,18.11]
[1726061282959,18.11,132.59,132.51,3.76122104]
[1726061283259,18.11,132.59,132.53,3.7728]
[1726061283260,3.7716,132.58,132.53,3.7728]
[1726061283850,24.67317285,132.61,132.55,3.772]
[1726061284052,24.67317285,132.61,132.51,9.99350879]
[1726061284454,3.7714,132.59,132.51,9.99350879]
[1726061285159,18.11,132.59,132.5,6.23228775]
[1726061285358,18.11,132.59,132.5,6.23420996]
[1726061285557,18.11,132.59,132.49,18.11]
[1726061285558,3.772,132.57,132.52,3.773]
[1726061285756,6.56317285,132.61,132.5,6.23420996]
[1726061285957,3.771,132.6,132.53,18.11]
[1726061286156,3.771,132.6,132.53,21.93856711]
[1726061286356,2.7272,132.61,132.53,21.93856711]
[1726061286559,6.4981,132.61,132.55,3.7721]
[1726061286755,10.31534892,132.61,132.55,3.7721]
[1726061286959,10.31534892,132.61,132.53,21.93856711]
[1726061286960,6.4981,132.61,132.53,21.93856711]
[1726061287260,6.4981,132.61,132.56,3.7718]
[1726061287452,3.7711,132.6,132.53,18.11]
[1726061287653,2.7272,132.61,132.53,18.11]
[1726061287858,6.58997911,132.61,132.53,18.11]
[1726061288059,20.8372,132.61,132.53,18.11]
[1726061288555,3.86164755,132.6,132.53,18.11]
[1726061288755,3.86164755,132.6,132.51,21.90790283]
[1726061288959,3.86164755,132.6,132.51,18.11]
[1726061289558,3.86164755,132.6,132.51,21.95090223]
[1726061289953,3.7712,132.59,132.54,3.7724]
[1726061291463,3.7715,132.58,132.54,3.7724]
[1726061291761,24.69150813,132.61,132.54,3.7724]
[1726061292058,3.771,132.6,132.53,18.11]
[1726061292455,3.771,132.6,132.55,3.7721]
[1726061292656,3.7713,132.59,132.53,18.11]
[1726061292854,3.7713,132.59,132.54,3.7725]
[1726061294665,3.7715,132.58,132.54,3.7725]
[1726061297368,6.58150813,132.61,132.53,18.11]
[1726061298268,3.7717,132.58,132.54,3.7726]
[1726061298662,2.7272,132.61,132.53,18.11]
[1726061298857,2.7272,132.61,132.55,18.11]
[1726061299069,2.7272,132.61,132.57,18.11]
[1726061299271,2.7272,132.61,132.59,3.7711]
[1726061299272,1.3261,132.61,132.59,3.7711]
[1726061299479,1.3465,132.66,132.59,18.11]
[1726061299663,2.7267,132.66,132.59,18.11]
[1726061299964,2.7267,132.66,132.61,18.11]
[1726061300159,18.11,132.72,132.63,18.11]
[1726061300469,22.0608,132.72,132.63,18.11]
[1726061300669,3.7691,132.67,132.62,3.7702]
[1726061300863,3.77130153,132.69,132.6,18.11]
[1726061301063,22.0608,132.72,132.6,18.11]
[1726061301776,3.7691,132.67,132.62,3.7701]
[1726061304164,3.7691,132.67,132.63,3.77]
[1726061306875,3.7691,132.67,132.62,3.7702]
[1726061308181,3.7173827,132.69,132.61,3.7705]
[1726061308182,3.7695,132.65,132.61,3.7705]
[1726061312079,3.7699,132.64,132.6,18.11]
[1726061312775,3.7695,132.65,132.6,18.11]
[1726061313574,3.7695,132.65,132.61,3.7704]
[1726061314379,3.7699,132.64,132.6,21.8808]
[1726061314589,4.1877,132.66,132.6,18.11]
[1726061315582,3.7696,132.65,132.61,3.7705]
[1726061316289,3.7696,132.65,132.62,11.58]
[1726061316475,7.9569,132.66,132.62,15.3503]
[1726061316880,7.9569,132.66,132.62,11.58]
[1726061317081,4.1877,132.66,132.62,11.58]
[1726061317581,3.7696,132.65,132.62,11.58]
[1726061322889,338.0,132.73,132.64,11.58]
[1726061323186,4.069,132.72,132.67,11.58]
[1726061323587,3.768,132.71,132.67,15.3488]
[1726061324088,3.81570466,132.71,132.67,3.7688]
[1726061324289,3.7679,132.71,132.67,3.7688]
[1726061324487,7.91600256,132.72,132.66,21.869]
[1726061325289,7.91600256,132.72,132.66,18.1]
[1726061325488,7.91600256,132.72,132.65,3.7694]
[1726061326485,3.7686,132.68,132.65,3.7694]
[1726061328393,3.7686,132.68,132.64,3.7696]
[1726061329689,26.01600256,132.72,132.61,18.1]
[1726061330094,3.769,132.67,132.63,3.77]
[1726061330294,26.01600256,132.72,132.61,18.1]
[1726061331291,3.769,132.67,132.63,3.77]
[1726061333603,3.7693,132.66,132.62,3.7703]
[1726061334000,3.769,132.67,132.63,3.77]
[1726061338206,3.7696,132.65,132.61,21.8704]
[1726061338909,3.7698,132.64,132.6,21.8708]
[1726061339200,18.1,132.68,132.58,18.1]
[1726061339397,3.77,132.64,132.59,3.7711]
[1726061340203,3.81060091,132.65,132.58,18.1]
[1726061340502,19.4414,132.66,132.58,18.1]
[1726061340804,3.7705,132.62,132.58,18.1]
[1726061340998,3.80833898,132.65,132.58,18.1]
[1726061341197,3.77,132.64,132.59,3.7711]
[1726061341398,3.69335746,132.64,132.59,3.7711]
[1726061341599,19.4414,132.66,132.59,3.7711]
[1726061341794,19.4414,132.66,132.58,21.91248586]
[1726061341795,1.3414,132.66,132.58,21.91248586]
[1726061342001,5.1107,132.66,132.61,3.7704]
[1726061342405,1.3414,132.66,132.6,18.1]
[1726061344214,3.7698,132.64,132.61,11.58]
[1726061345504,15.41115903,132.65,132.61,11.58]
[1726061346007,15.41115903,132.65,132.59,11.58]
[1726061346208,11.58,132.64,132.59,11.58]
[1726061346802,3.7702,132.63,132.59,11.58]
[1726061347205,3.7706,132.61,132.57,170.05768449]
[1726061348303,3.7709,132.6,132.56,11.58]
[1726061348503,14.272,132.62,132.55,15.3522]
[1726061348897,14.272,132.62,132.55,11.58]
[1726061349112,11.58,132.6,132.52,6.22514812]
[1726061349413,11.58,132.6,132.54,11.58]
[1726061349601,2.692,132.62,132.41,7.5525]
[1726061349602,11.58,132.58,132.41,7.5525]
[1726061349806,1.3332,132.59,132.51,11.58]
[1726061349807,14.2047,132.57,132.51,11.58]
[1726061349999,3.80657815,132.56,132.51,11.58]
[1726061350199,11.58,132.56,132.5,11.58]
[1726061350401,11.58,132.54,132.45,3.82845503]
[1726061350601,11.58,132.54,132.36,11.3324]
[1726061350602,11.58,132.54,132.48,11.58]
[1726061350802,3.73679843,132.53,132.45,19.94405271]
[1726061351009,11.58,132.54,132.46,6.2264508]
[1726061351204,3.7732,132.52,132.48,11.58]
[1726061351411,11.58,132.53,132.47,11.58]
[1726061351613,16.67405011,132.53,132.46,11.58]
[1726061352006,3.7736,132.51,132.46,11.58]
[1726061352309,5.09405011,132.53,132.43,21.87990967]
[1726061352610,5.09405011,132.53,132.35,7.5555]
[1726061352611,1.3093,132.5,132.35,7.5555]
[1726061352816,1.3506,132.49,132.41,18.11]
[1726061353007,1.3506,132.49,132.42,3.7758]
[1726061353205,1.3506,132.49,132.33,3.72887748]
[1726061353401,1.3506,132.49,132.39,18.11]
[1726061353811,1.3506,132.49,132.41,18.11]
[1726061355012,1.3506,132.49,132.41,21.87151638]
[1726061355211,1.3506,132.49,132.41,18.11]
[1726061356214,3.7746,132.47,132.41,18.11]
[1726061356414,3.7746,132.47,132.39,18.11]
[1726061356613,5.1247,132.49,132.39,18.11]
[1726061356810,1.3506,132.49,132.39,18.11]
[1726061357913,18.11,132.48,132.39,18.11]
[1726061358110,1.31,132.47,132.39,18.11]
[1726061358614,5.0848,132.47,132.41,3.7763]
[1726061358810,3.73697326,132.46,132.41,3.7763]
[1726061359211,3.73697326,132.46,132.42,3.7758]
[1726061360114,3.73697326,132.46,132.41,3.7762]
[1726061361020,7.51197326,132.46,132.41,3.7762]
[1726061361717,18.11,132.45,132.33,3.72887748]
[1726061361918,18.11,132.45,132.34,18.11]
[1726061362120,3.7762,132.42,132.37,3.7774]
[1726061362316,1.4036,132.44,132.34,21.90691866]
[1726061362715,19.4031,132.43,132.34,21.90691866]
[1726061363319,1.2931,132.43,132.38,3.7771]
[1726061363915,1.4036,132.44,132.37,18.11]
[1726061364114,3.73697326,132.46,132.37,18.11]
[1726061364423,7.51187326,132.46,132.37,18.11]
[1726061364719,1.31,132.47,132.39,18.11]
[1726061364923,5.0847,132.47,132.39,18.11]
[1726061365129,1.31,132.47,132.41,3.7761]
[1726061365422,1.31,132.47,132.39,18.11]
[1726061365929,1.31,132.47,132.41,3.7762]
[1726061366618,1.31,132.47,132.4,3.7766]
[1726061366819,1.31,132.47,132.39,18.11]
[1726061367029,19.42,132.47,132.37,18.11]
[1726061367512,18.11,132.45,132.35,18.11]
[1726061367719,3.72875594,132.44,132.35,18.11]
[1726061368020,3.7759,132.43,132.38,3.7769]
[1726061368622,3.7759,132.43,132.39,3.7769]
[1726061369516,3.7759,132.43,132.38,3.777]
[1726061369717,3.776,132.42,132.35,18.11]
[1726061370227,3.7763,132.41,132.33,18.11]
[1726061370417,3.69778684,132.42,132.33,18.11]
[1726061370625,18.11,132.43,132.35,3.7778]
[1726061370828,3.7764,132.41,132.35,3.7778]
[1726061371025,7.53027172,132.41,132.33,18.11]
[1726061371229,7.53027172,132.41,132.36,3.7777]
[1726061372526,3.75387172,132.41,132.37,3.7772]
[1726061372727,18.11,132.43,132.37,3.7772]
[1726061372923,3.7761,132.42,132.37,3.7772]
[1726061373236,3.7761,132.42,132.33,18.11]
[1726061373237,21.90315554,132.43,132.36,3.7776]
[1726061373625,3.7763,132.41,132.36,3.7776]
[1726061374027,3.7771,132.39,132.31,3.73442102]
[1726061374218,21.90315554,132.43,132.32,19.49835089]
[1726061374424,21.90315554,132.43,132.32,18.11]
[1726061374725,3.7767,132.4,132.35,3.7779]
[1726061375119,3.7767,132.4,132.32,18.11]
[1726061376130,3.79315554,132.43,132.34,18.11]
[1726061376327,18.11,132.43,132.34,18.11]
[1726061376519,3.7763,132.41,132.34,18.11]
[1726061376720,18.11,132.42,132.31,3.73876255]
[1726061376925,18.11,132.42,132.32,19.49835481]
[1726061377125,18.11,132.42,132.32,18.11]
[1726061377525,18.11,132.42,132.34,3.7781]
[1726061377727,3.7772,132.38,132.34,3.7781]
[1726061377927,18.11,132.42,132.34,3.7781]
[1726061378127,3.777,132.39,132.34,3.7781]
[1726061379324,3.7772,132.38,132.32,18.11]
[1726061379626,18.11,132.42,132.32,18.11]
[1726061379836,18.11,132.38,132.29,18.11]
[1726061380224,18.11,132.38,132.29,21.97899365]
[1726061382532,1.307,132.41,132.29,21.97899365]
[1726061382732,18.11,132.4,132.3,1.38856552]
[1726061383029,3.7774,132.37,132.32,3.7788]
[1726061383233,2.6263,132.39,132.29,3.86899365]
[1726061383422,2.6263,132.39,132.3,18.11]
[1726061383627,3.7775,132.37,132.32,3.7788]
[1726061384130,3.7773,132.38,132.3,21.98272315]
[1726061384631,1.2908,132.39,132.31,18.11]
[1726061385334,1.2908,132.39,132.31,21.94720051]
[1726061385833,3.7768,132.4,132.31,21.94720051]
[1726061386536,19.417,132.41,132.31,21.94720051]
[1726061386741,18.11,132.4,132.3,18.11]
[1726061386942,3.7774,132.37,132.32,3.7788]
[1726061387236,18.11,132.4,132.3,21.86557403]
[1726061387625,3.7774,132.38,132.3,21.86557403]
[1726061387836,18.11,132.4,132.3,21.86557403]
[1726061388240,18.11,132.4,132.3,18.11]
[1726061388836,3.7772,132.38,132.33,3.7784]
[1726061389033,18.11,132.4,132.33,3.7784]
[1726061389938,3.7773,132.38,132.33,3.7784]
[1726061390736,3.7769,132.39,132.34,3.7782]
[1726061390934,18.11,132.4,132.3,21.87974231]
[1726061391436,3.7774,132.38,132.33,3.7784]
[1726061391638,18.11,132.4,132.3,21.87974231]
[1726061392040,3.7772,132.38,132.33,3.7784]
[1726061392437,2.6637,132.41,132.32,18.11]
[1726061392643,3.7769,132.39,132.34,3.7781]
[1726061392941,2.6637,132.41,132.32,18.11]
[1726061393139,3.7772,132.38,132.33,3.7784]
[1726061394443,3.7769,132.39,132.34,3.7782]
[1726061394639,2.6637,132.41,132.32,18.11]
[1726061394840,2.6637,132.41,132.23,7.5627]
[1726061395038,2.6637,132.41,132.33,3.7783]
[1726061395243,2.6637,132.41,132.31,21.98062646]
[1726061395646,3.777,132.39,132.31,21.98062646]
[1726061396040,3.7772,132.38,132.33,3.7784]
[1726061396645,3.7772,132.38,132.34,3.7783]
[1726061397041,3.7772,132.38,132.31,21.95804291]
[1726061397347,3.7772,132.38,132.33,3.7784]
[1726061398249,3.7772,132.38,132.33,15.3884]
[1726061398951,3.7772,132.38,132.33,3.7784]
[1726061399653,3.7775,132.37,132.33,3.7784]
[1726061399852,11.61,132.39,132.32,11.61]
[1726061400248,2.6637,132.41,132.34,11.61]
[1726061400449,11.61,132.37,132.23,7.5627]
[1726061400650,11.61,132.36,132.24,1.3888106]
[1726061400848,2.6637,132.41,132.31,3.779]
[1726061401153,11.61,132.36,132.28,3.81017154]
[1726061401354,15.45115468,132.36,132.29,11.61]
[1726061401555,3.84115468,132.36,132.2,173.94354132]
[1726061401756,11.61,132.32,132.21,1.38892815]
[1726061401957,3.9721,132.35,132.29,11.61]
[1726061402158,3.7783,132.34,132.29,11.61]
[1726061402347,11.61,132.34,132.28,11.61]
[1726061402947,11.61,132.34,132.29,11.61]
[1726061403351,11.61,132.34,132.2,173.94354132]
[1726061403556,11.61,132.33,132.26,11.61]
[1726061403753,11.61,132.34,132.28,11.61]
[1726061404258,3.9721,132.35,132.2,173.94354132]
[1726061404463,3.9721,132.35,132.25,18.16]
[1726061405253,3.7794,132.31,132.25,3.7807]
[1726061405555,3.9721,132.35,132.26,18.16]
[1726061405755,3.7786,132.33,132.27,3.7802]
[1726061405959,3.9721,132.35,132.26,18.16]
[1726061406657,3.9721,132.35,132.28,18.16]
[1726061406964,2.6591,132.35,132.3,3.7794]